[Event "*** Titled Tuesday Blitz"]
[Site "Chess.com"]
[Date "2020.05.12"]
[Round "4"]
[White "amiralfio"]
[Black "Didici"]
[Result "1-0"]
[WhiteElo "2469"]
[BlackElo "2621"]
[TimeControl "180+1"]
[EndTime "10:40:55 PDT"]
[Termination "amiralfio won on time"]

1. e4 {[%clk 0:03:00.9]} 1... e5 {[%clk 0:02:58.4]} 2. Nf3 {[%clk 0:02:59.4]}
2... Nc6 {[%clk 0:02:55.8]} 3. Bc4 {[%clk 0:02:29]} 3... Nf6 {[%clk 0:02:54.7]}
4. d3 {[%clk 0:02:26.4]} 4... Bc5 {[%clk 0:02:52.5]} 5. O-O {[%clk 0:02:20.9]}
5... d6 {[%clk 0:02:49]} 6. a3 {[%clk 0:02:18.3]} 6... a6 {[%clk 0:02:41.3]} 7.
b4 {[%clk 0:02:14.9]} 7... Ba7 {[%clk 0:02:38.3]} 8. Nc3 {[%clk 0:02:14.6]} 8...
h6 {[%clk 0:02:37.1]} 9. Nd5 {[%clk 0:02:03.2]} 9... Nxd5 {[%clk 0:02:30.9]} 10.
Bxd5 {[%clk 0:02:04.1]} 10... Ne7 {[%clk 0:02:11.4]} 11. Bb3 {[%clk 0:01:56.2]}
11... Ng6 {[%clk 0:02:10.8]} 12. d4 {[%clk 0:01:55.7]} 12... Bg4 {[%clk
0:01:54.5]} 13. h3 {[%clk 0:01:55.1]} 13... Bxf3 {[%clk 0:01:50.4]} 14. Qxf3
{[%clk 0:01:56]} 14... O-O {[%clk 0:01:49.8]} 15. dxe5 {[%clk 0:01:22.2]} 15...
dxe5 {[%clk 0:01:35.2]} 16. Rd1 {[%clk 0:01:20.5]} 16... Qe7 {[%clk 0:01:32.1]}
17. Qf5 {[%clk 0:01:17.6]} 17... Nh4 {[%clk 0:00:29.9]} 18. Qg4 {[%clk
0:01:01.3]} 18... Kh7 {[%clk 0:00:27.6]} 19. g3 {[%clk 0:00:40.1]} 19... Ng6
{[%clk 0:00:20.6]} 20. h4 {[%clk 0:00:40.3]} 20... Rad8 {[%clk 0:00:18.8]} 21.
h5 {[%clk 0:00:27.6]} 21... Nh8 {[%clk 0:00:18.7]} 22. Bb2 {[%clk 0:00:15.8]}
22... Qf6 {[%clk 0:00:15.1]} 23. Qe2 {[%clk 0:00:12.5]} 23... g6 {[%clk
0:00:13]} 24. Kg2 {[%clk 0:00:11.2]} 24... gxh5 {[%clk 0:00:12.6]} 25. Rxd8
{[%clk 0:00:10.9]} 25... Rxd8 {[%clk 0:00:11.9]} 26. Rh1 {[%clk 0:00:11.4]}
26... h4 {[%clk 0:00:09.5]} 27. Rxh4 {[%clk 0:00:09.9]} 27... Ng6 {[%clk
0:00:09.3]} 28. Rh5 {[%clk 0:00:08.4]} 28... Rg8 {[%clk 0:00:07.1]} 29. Kf1
{[%clk 0:00:06.8]} 29... Kg7 {[%clk 0:00:05.6]} 30. Bc1 {[%clk 0:00:06.3]} 30...
Rh8 {[%clk 0:00:03.4]} 31. Qd2 {[%clk 0:00:06.6]} 31... Ne7 {[%clk 0:00:01.8]}
32. Rh2 {[%clk 0:00:03.8]} 32... h5 {[%clk 0:00:01.4]} 33. Qe2 {[%clk
0:00:04.1]} 33... h4 {[%clk 0:00:01.2]} 34. Qg4+ {[%clk 0:00:04.4]} 34... Qg6
{[%clk 0:00:01.1]} 35. Qxg6+ {[%clk 0:00:04.6]} 35... Nxg6 {[%clk 0:00:02]} 36.
gxh4 {[%clk 0:00:04.9]} 36... Rxh4 {[%clk 0:00:02.6]} 37. Rxh4 {[%clk
0:00:04.9]} 37... Nxh4 {[%clk 0:00:03.5]} 38. Ke2 {[%clk 0:00:05.4]} 38... Ng6
{[%clk 0:00:03.9]} 39. c4 {[%clk 0:00:05.1]} 39... Kf6 {[%clk 0:00:04.8]} 40. c5
{[%clk 0:00:05.1]} 40... b6 {[%clk 0:00:04.5]} 41. Be3 {[%clk 0:00:05.4]} 41...
bxc5 {[%clk 0:00:04.2]} 42. bxc5 {[%clk 0:00:06.3]} 42... Nf4+ {[%clk
0:00:03.8]} 43. Kd2 {[%clk 0:00:06.7]} 43... Ne6 {[%clk 0:00:03.7]} 44. Bxe6
{[%clk 0:00:06.1]} 44... Kxe6 {[%clk 0:00:04.5]} 45. Kc3 {[%clk 0:00:06.6]}
45... c6 {[%clk 0:00:04.8]} 46. Kc4 {[%clk 0:00:06.8]} 46... Bb8 {[%clk
0:00:05]} 47. Kb4 {[%clk 0:00:06.5]} 47... Bc7 {[%clk 0:00:05.4]} 48. Kc4 {[%clk
0:00:07]} 48... Kf6 {[%clk 0:00:05.7]} 49. Bd2 {[%clk 0:00:06.3]} 49... Kg6
{[%clk 0:00:05.3]} 50. Be3 {[%clk 0:00:06.8]} 50... Kh5 {[%clk 0:00:05.2]} 51.
Kc3 {[%clk 0:00:06.1]} 51... Kg4 {[%clk 0:00:05.3]} 52. Kd3 {[%clk 0:00:06.6]}
52... Kf3 {[%clk 0:00:05.5]} 53. a4 {[%clk 0:00:06.7]} 53... Ba5 {[%clk
0:00:04.7]} 54. Bg5 {[%clk 0:00:06]} 54... Be1 {[%clk 0:00:04.1]} 55. Bf6 {[%clk
0:00:06.1]} 55... Kf4 {[%clk 0:00:04.1]} 56. f3 {[%clk 0:00:04.9]} 56... Bf2
{[%clk 0:00:03.9]} 57. Bg7 {[%clk 0:00:02.9]} 57... Bxc5 {[%clk 0:00:03.4]} 58.
Bf6 {[%clk 0:00:01.9]} 58... Kxf3 {[%clk 0:00:02.4]} 59. Bd8 {[%clk 0:00:02.8]}
59... Be7 {[%clk 0:00:03.1]} 60. Bxe7 {[%clk 0:00:02.6]} 60... Kf4 {[%clk
0:00:03.1]} 61. Bd6 {[%clk 0:00:02.8]} 61... f5 {[%clk 0:00:03.2]} 62. exf5
{[%clk 0:00:03.7]} 62... Kxf5 {[%clk 0:00:04.1]} 63. Kc4 {[%clk 0:00:04.2]}
63... e4 {[%clk 0:00:03.7]} 64. Kc5 {[%clk 0:00:04.5]} 64... e3 {[%clk
0:00:03.8]} 65. Kxc6 {[%clk 0:00:04.8]} 65... e2 {[%clk 0:00:04.2]} 66. Bb4
{[%clk 0:00:05.3]} 66... Ke6 {[%clk 0:00:04.5]} 67. Kb6 {[%clk 0:00:05.5]} 67...
Kd7 {[%clk 0:00:05.4]} 68. Kb7 {[%clk 0:00:05.3]} 68... Kd8 {[%clk 0:00:05.3]}
69. Ba5+ {[%clk 0:00:05.1]} 69... Kd7 {[%clk 0:00:05.5]} 70. Be1 {[%clk
0:00:06]} 70... Kd6 {[%clk 0:00:04.2]} 71. a5 {[%clk 0:00:05.8]} 71... Kd7
{[%clk 0:00:03.7]} 72. Bf2 {[%clk 0:00:05]} 72... Kd8 {[%clk 0:00:03.5]} 73. Be1
{[%clk 0:00:05.3]} 73... Kd7 {[%clk 0:00:03.9]} 74. Bh4 {[%clk 0:00:05.6]} 74...
Kd6 {[%clk 0:00:03.2]} 75. Kxa6 {[%clk 0:00:05]} 75... Kc6 {[%clk 0:00:04.1]}
76. Ka7 {[%clk 0:00:05.2]} 76... Kc7 {[%clk 0:00:04.4]} 77. Bg3+ {[%clk
0:00:05]} 77... Kc8 {[%clk 0:00:04.6]} 78. a6 {[%clk 0:00:05.4]} 78... Kd7
{[%clk 0:00:02.1]} 79. Be1 {[%clk 0:00:05.5]} 1-0

[Event "*** Titled Tuesday Blitz"]
[Site "Chess.com"]
[Date "2020.05.12"]
[Round "4"]
[White "Hasangatin_Ramil"]
[Black "Luibov_AN"]
[Result "1-0"]
[WhiteElo "2558"]
[BlackElo "2126"]
[TimeControl "180+1"]
[EndTime "10:41:45 PDT"]
[Termination "Hasangatin_Ramil won by resignation"]

1. e4 {[%clk 0:03:00.9]} 1... g6 {[%clk 0:02:59.3]} 2. d4 {[%clk 0:02:56.4]}
2... Bg7 {[%clk 0:02:58.6]} 3. Nc3 {[%clk 0:02:56.6]} 3... c5 {[%clk 0:02:59.1]}
4. d5 {[%clk 0:02:55.2]} 4... e5 {[%clk 0:02:58.1]} 5. dxe6 {[%clk 0:02:33.9]}
5... fxe6 {[%clk 0:02:57.9]} 6. Nf3 {[%clk 0:02:33.3]} 6... a6 {[%clk
0:02:55.7]} 7. a4 {[%clk 0:02:32.4]} 7... Nc6 {[%clk 0:02:55.1]} 8. Be3 {[%clk
0:02:31.3]} 8... d6 {[%clk 0:02:50.8]} 9. Qd2 {[%clk 0:02:29.6]} 9... h6 {[%clk
0:02:36.9]} 10. Rd1 {[%clk 0:02:25.9]} 10... Bf8 {[%clk 0:02:30.2]} 11. Bc4
{[%clk 0:02:19.1]} 11... Nf6 {[%clk 0:02:29.3]} 12. e5 {[%clk 0:02:13.6]} 12...
Ng4 {[%clk 0:02:24.7]} 13. exd6 {[%clk 0:02:10.2]} 13... Nxe3 {[%clk 0:02:23.1]}
14. Qxe3 {[%clk 0:02:11.1]} 14... Qf6 {[%clk 0:02:20.8]} 15. Qxc5 {[%clk
0:01:56.7]} 15... Bd7 {[%clk 0:02:19.8]} 16. O-O {[%clk 0:01:49.9]} 16... Bg7
{[%clk 0:02:16.1]} 17. Ne4 {[%clk 0:01:31.8]} 17... Qf7 {[%clk 0:02:04.3]} 18.
Qe3 {[%clk 0:00:59.9]} 18... O-O {[%clk 0:01:59.7]} 19. Nc5 {[%clk 0:00:59.4]}
19... Nd8 {[%clk 0:01:53.2]} 20. Rfe1 {[%clk 0:00:53.7]} 20... Re8 {[%clk
0:01:50.9]} 21. Ne5 {[%clk 0:00:50.3]} 21... Bxe5 {[%clk 0:01:48.8]} 22. Qxe5
{[%clk 0:00:51.2]} 22... Kh7 {[%clk 0:01:44.9]} 23. Rd3 {[%clk 0:00:38.8]} 23...
Rc8 {[%clk 0:01:38.1]} 24. Rf3 {[%clk 0:00:37.7]} 24... Qg7 {[%clk 0:01:37.8]}
25. Qxg7+ {[%clk 0:00:36.1]} 25... Kxg7 {[%clk 0:01:37.6]} 26. Nxd7 {[%clk
0:00:33.9]} 26... Rxc4 {[%clk 0:01:35.7]} 27. c3 {[%clk 0:00:27.2]} 27... Rxa4
{[%clk 0:01:29.2]} 28. g3 {[%clk 0:00:24.9]} 28... Ra2 {[%clk 0:01:26.9]} 29.
Re2 {[%clk 0:00:23.4]} 29... Ra1+ {[%clk 0:01:25.3]} 30. Kg2 {[%clk 0:00:23.1]}
30... Rd1 {[%clk 0:01:25.8]} 31. Ne5 {[%clk 0:00:20.4]} 31... Rxd6 {[%clk
0:01:22.9]} 32. Rfe3 {[%clk 0:00:20.4]} 32... b5 {[%clk 0:01:16.4]} 33. h4
{[%clk 0:00:20.6]} 33... h5 {[%clk 0:01:13.9]} 34. Re4 {[%clk 0:00:20.9]} 34...
a5 {[%clk 0:01:10.1]} 35. Nf3 {[%clk 0:00:21]} 35... Rd5 {[%clk 0:01:01.2]} 36.
Ng5 {[%clk 0:00:20.8]} 36... e5 {[%clk 0:00:54.4]} 37. c4 {[%clk 0:00:21]} 37...
bxc4 {[%clk 0:00:53.7]} 38. Rxc4 {[%clk 0:00:21.9]} 38... Ne6 {[%clk 0:00:48.3]}
39. Nxe6+ {[%clk 0:00:17]} 39... Rxe6 {[%clk 0:00:44.6]} 40. Rc7+ {[%clk
0:00:17.1]} 40... Kf6 {[%clk 0:00:42.5]} 41. Re3 {[%clk 0:00:17.3]} 41... e4
{[%clk 0:00:38.9]} 42. Rc4 {[%clk 0:00:17.4]} 42... Rde5 {[%clk 0:00:38.3]} 43.
Rd4 {[%clk 0:00:16.8]} 43... Kf5 {[%clk 0:00:37.8]} 44. b3 {[%clk 0:00:15.8]}
44... Kf6 {[%clk 0:00:36.2]} 45. Rc4 {[%clk 0:00:15.4]} 45... Kf5 {[%clk
0:00:36.2]} 46. Rc8 {[%clk 0:00:15.2]} 46... Kf6 {[%clk 0:00:35.7]} 47. Rf8+
{[%clk 0:00:14.9]} 47... Kg7 {[%clk 0:00:35.6]} 48. Rf4 {[%clk 0:00:15.1]} 48...
Re7 {[%clk 0:00:32.4]} 49. Kf1 {[%clk 0:00:14.9]} 49... R7e6 {[%clk 0:00:32.2]}
50. Kg2 {[%clk 0:00:15.1]} 50... Re7 {[%clk 0:00:32.2]} 51. Kh3 {[%clk
0:00:15.5]} 51... R7e6 {[%clk 0:00:30.3]} 52. g4 {[%clk 0:00:15.8]} 52... hxg4+
{[%clk 0:00:29.7]} 53. Kxg4 {[%clk 0:00:16.7]} 53... Rb6 {[%clk 0:00:25.4]} 54.
Rfxe4 {[%clk 0:00:12.6]} 54... Rxe4+ {[%clk 0:00:25.1]} 55. Rxe4 {[%clk
0:00:13.5]} 55... Rxb3 {[%clk 0:00:25.4]} 56. f4 {[%clk 0:00:13.7]} 56... Kf7
{[%clk 0:00:23.9]} 57. Rc4 {[%clk 0:00:12.8]} 57... Rb4 {[%clk 0:00:21.7]} 58.
Rc7+ {[%clk 0:00:12.2]} 58... Kf6 {[%clk 0:00:22]} 59. Rc6+ {[%clk 0:00:12.6]}
59... Kf7 {[%clk 0:00:22.2]} 60. Ra6 {[%clk 0:00:13]} 60... a4 {[%clk 0:00:21]}
61. Ra5 {[%clk 0:00:11]} 61... Kf6 {[%clk 0:00:20.3]} 62. Ra6+ {[%clk
0:00:10.4]} 62... Kf7 {[%clk 0:00:20.4]} 63. Ra8 {[%clk 0:00:09.1]} 63... Kf6
{[%clk 0:00:20.5]} 64. Rf8+ {[%clk 0:00:09.1]} 64... Kg7 {[%clk 0:00:20.5]} 65.
Rc8 {[%clk 0:00:09.1]} 65... Kf6 {[%clk 0:00:20]} 66. Rc6+ {[%clk 0:00:08.9]}
66... Kf7 {[%clk 0:00:20]} 67. Rc7+ {[%clk 0:00:09.1]} 67... Kf6 {[%clk
0:00:20.2]} 68. Rc8 {[%clk 0:00:09.3]} 68... Kf7 {[%clk 0:00:20.3]} 69. Rc5
{[%clk 0:00:09.2]} 69... Kf6 {[%clk 0:00:20.3]} 70. Ra5 {[%clk 0:00:08.4]} 70...
Kf7 {[%clk 0:00:19.9]} 71. Kg5 {[%clk 0:00:07.8]} 71... Rb6 {[%clk 0:00:14.1]}
72. Rxa4 {[%clk 0:00:06.7]} 72... Rb5+ {[%clk 0:00:14.5]} 73. Kg4 {[%clk
0:00:07.1]} 73... Kf6 {[%clk 0:00:14.9]} 74. Ra6+ {[%clk 0:00:06.6]} 74... Kf7
{[%clk 0:00:15]} 75. Rd6 {[%clk 0:00:06.3]} 75... Kg7 {[%clk 0:00:13.9]} 76. Rd4
{[%clk 0:00:06.4]} 76... Kf6 {[%clk 0:00:13.9]} 77. Re4 {[%clk 0:00:06.8]} 77...
Kf7 {[%clk 0:00:13.8]} 78. Re5 {[%clk 0:00:06.5]} 78... Rb4 {[%clk 0:00:12.4]}
79. Kg5 {[%clk 0:00:05.9]} 79... Rb1 {[%clk 0:00:12.8]} 80. Ra5 {[%clk
0:00:05.7]} 80... Rg1+ {[%clk 0:00:13.1]} 81. Kh6 {[%clk 0:00:04.9]} 81... Rh1
{[%clk 0:00:11.7]} 82. h5 {[%clk 0:00:04.4]} 82... gxh5 {[%clk 0:00:06.7]} 83.
Rxh5 {[%clk 0:00:05.3]} 83... Rf1 {[%clk 0:00:06.6]} 84. Kg5 {[%clk 0:00:04.4]}
84... Rg1+ {[%clk 0:00:05.6]} 85. Kf5 {[%clk 0:00:03.9]} 85... Kg7 {[%clk
0:00:04.5]} 86. Rh3 {[%clk 0:00:03.1]} 86... Rg2 {[%clk 0:00:04.4]} 87. Rb3
{[%clk 0:00:03.1]} 87... Kf7 {[%clk 0:00:04.3]} 88. Rb7+ {[%clk 0:00:04]} 88...
Kf8 {[%clk 0:00:04.2]} 89. Kf6 {[%clk 0:00:04.4]} 89... Ke8 {[%clk 0:00:04.6]}
90. f5 {[%clk 0:00:04.2]} 90... Rc2 {[%clk 0:00:03.9]} 91. Rb8+ {[%clk
0:00:04.1]} 91... Kd7 {[%clk 0:00:04]} 92. Kf7 {[%clk 0:00:04.3]} 92... Rf2
{[%clk 0:00:03.8]} 93. f6 {[%clk 0:00:04.1]} 93... Kd6 {[%clk 0:00:04.4]} 94.
Rb3 {[%clk 0:00:04.1]} 94... Ke5 {[%clk 0:00:04.5]} 95. Rb5+ {[%clk 0:00:03.6]}
95... Kd6 {[%clk 0:00:03.6]} 96. Rb1 {[%clk 0:00:03.8]} 96... Ke5 {[%clk
0:00:03.6]} 97. Re1+ {[%clk 0:00:04]} 97... Kf5 {[%clk 0:00:03.6]} 98. Ke7
{[%clk 0:00:03.2]} 98... Kg5 {[%clk 0:00:04.1]} 99. f7 {[%clk 0:00:03.1]} 99...
Rxf7+ {[%clk 0:00:04.2]} 100. Kxf7 {[%clk 0:00:02.6]} 1-0

[Event "*** Titled Tuesday Blitz"]
[Site "Chess.com"]
[Date "2020.05.12"]
[Round "5"]
[White "fm_magua"]
[Black "Irishchessman16"]
[Result "0-1"]
[WhiteElo "2540"]
[BlackElo "2412"]
[TimeControl "180+1"]
[EndTime "10:50:07 PDT"]
[Termination "Irishchessman16 won by resignation"]

1. e4 {[%clk 0:03:00.9]} 1... c5 {[%clk 0:02:59]} 2. Nf3 {[%clk 0:02:59.8]} 2...
Nc6 {[%clk 0:02:58]} 3. d4 {[%clk 0:03:00.5]} 3... cxd4 {[%clk 0:02:57.7]} 4.
Nxd4 {[%clk 0:03:01.4]} 4... Nf6 {[%clk 0:02:57.7]} 5. Nc3 {[%clk 0:03:01.6]}
5... e5 {[%clk 0:02:57.4]} 6. Ndb5 {[%clk 0:03:02.2]} 6... d6 {[%clk 0:02:57.9]}
7. Nd5 {[%clk 0:03:02.1]} 7... Nxd5 {[%clk 0:02:57.4]} 8. exd5 {[%clk 0:03:03]}
8... Nb8 {[%clk 0:02:57.8]} 9. c3 {[%clk 0:03:03.3]} 9... Be7 {[%clk 0:02:56.3]}
10. a4 {[%clk 0:03:03.4]} 10... O-O {[%clk 0:02:55.8]} 11. Be3 {[%clk
0:03:03.6]} 11... f5 {[%clk 0:02:53.7]} 12. Be2 {[%clk 0:02:56]} 12... a6 {[%clk
0:02:50.2]} 13. Na3 {[%clk 0:02:53.9]} 13... f4 {[%clk 0:02:46.5]} 14. Bd2
{[%clk 0:02:54.2]} 14... e4 {[%clk 0:02:45.7]} 15. Nc4 {[%clk 0:02:47.6]} 15...
e3 {[%clk 0:02:26.7]} 16. fxe3 {[%clk 0:02:44]} 16... Bh4+ {[%clk 0:02:25.5]}
0-1

[Event "*** Titled Tuesday Blitz"]
[Site "Chess.com"]
[Date "2020.05.12"]
[Round "5"]
[White "rynos0411"]
[Black "BlackWidow515"]
[Result "1-0"]
[WhiteElo "2330"]
[BlackElo "2128"]
[TimeControl "180+1"]
[EndTime "10:51:21 PDT"]
[Termination "rynos0411 won by resignation"]

1. d4 {[%clk 0:03:00.9]} 1... d5 {[%clk 0:02:58.1]} 2. c4 {[%clk 0:02:58.3]}
2... e6 {[%clk 0:02:55.6]} 3. Nf3 {[%clk 0:02:56.9]} 3... Nf6 {[%clk 0:02:55.4]}
4. Nc3 {[%clk 0:02:55.3]} 4... Ke7 {[%clk 0:02:52.9]} 5. Bf4 {[%clk 0:02:51.9]}
5... Ke8 {[%clk 0:02:49.4]} 6. e3 {[%clk 0:02:49.7]} 6... Be7 {[%clk 0:02:47.7]}
7. Rc1 {[%clk 0:02:45.1]} 7... c6 {[%clk 0:02:45.7]} 8. Bd3 {[%clk 0:02:42.7]}
8... Nbd7 {[%clk 0:02:45.9]} 9. O-O {[%clk 0:02:41.3]} 9... Nf8 {[%clk
0:02:45.6]} 10. Re1 {[%clk 0:02:40.8]} 10... Ng6 {[%clk 0:02:45.9]} 11. Bg3
{[%clk 0:02:41.3]} 11... Bd7 {[%clk 0:02:45.8]} 12. e4 {[%clk 0:02:40]} 12...
dxe4 {[%clk 0:02:46]} 13. Nxe4 {[%clk 0:02:38.8]} 13... Nxe4 {[%clk 0:02:46.6]}
14. Bxe4 {[%clk 0:02:38.8]} 14... f6 {[%clk 0:02:47.2]} 15. d5 {[%clk
0:02:33.8]} 15... e5 {[%clk 0:02:44.7]} 16. d6 {[%clk 0:02:18.5]} 16... Bf8
{[%clk 0:02:43.6]} 17. c5 {[%clk 0:02:19]} 17... Kf7 {[%clk 0:02:41]} 18. h4
{[%clk 0:02:11.3]} 18... Be6 {[%clk 0:02:39.5]} 19. h5 {[%clk 0:02:08.7]} 19...
Nf4 {[%clk 0:02:33.8]} 20. Bxf4 {[%clk 0:02:07.4]} 20... exf4 {[%clk 0:02:34.2]}
21. Qe2 {[%clk 0:02:03.9]} 21... Bd7 {[%clk 0:02:31.7]} 22. Qc4+ {[%clk
0:01:59.2]} 22... Be6 {[%clk 0:02:28.9]} 23. Bg6+ {[%clk 0:01:54.1]} 1-0

[Event "*** Titled Tuesday Blitz"]
[Site "Chess.com"]
[Date "2020.05.12"]
[Round "5"]
[White "narutosmith"]
[Black "RubensCezila"]
[Result "1-0"]
[WhiteElo "2285"]
[BlackElo "2461"]
[TimeControl "180+1"]
[EndTime "10:51:35 PDT"]
[Termination "narutosmith won by resignation"]

1. c4 {[%clk 0:03:00.9]} 1... Nf6 {[%clk 0:02:59.6]} 2. Nc3 {[%clk 0:03:01.4]}
2... g6 {[%clk 0:02:58.7]} 3. g3 {[%clk 0:03:01.3]} 3... Bg7 {[%clk 0:02:58.1]}
4. Bg2 {[%clk 0:03:01.9]} 4... O-O {[%clk 0:02:58.3]} 5. e4 {[%clk 0:03:02.1]}
5... d6 {[%clk 0:02:58.2]} 6. Nge2 {[%clk 0:03:02.5]} 6... c5 {[%clk 0:02:57.9]}
7. O-O {[%clk 0:03:02]} 7... Nc6 {[%clk 0:02:58.2]} 8. a3 {[%clk 0:03:01.5]}
8... Ne8 {[%clk 0:02:45.9]} 9. Rb1 {[%clk 0:02:59.7]} 9... a5 {[%clk 0:02:45.3]}
10. d3 {[%clk 0:02:53.1]} 10... Bd7 {[%clk 0:02:41.9]} 11. Be3 {[%clk
0:02:52.9]} 11... Nd4 {[%clk 0:02:41.7]} 12. b4 {[%clk 0:02:44.9]} 12... axb4
{[%clk 0:02:39]} 13. axb4 {[%clk 0:02:45.4]} 13... Nxe2+ {[%clk 0:02:34.4]} 14.
Nxe2 {[%clk 0:02:45.1]} 14... b6 {[%clk 0:02:31.4]} 15. d4 {[%clk 0:02:26.1]}
15... cxb4 {[%clk 0:02:10.5]} 16. Rxb4 {[%clk 0:02:24.7]} 16... Rb8 {[%clk
0:02:09.5]} 17. Qb1 {[%clk 0:02:18.9]} 17... Qc8 {[%clk 0:02:01.1]} 18. Rc1
{[%clk 0:02:12.8]} 18... Bh3 {[%clk 0:02:01]} 19. Rxb6 {[%clk 0:02:05]} 19...
Rxb6 {[%clk 0:02:00.4]} 20. Qxb6 {[%clk 0:02:05.9]} 20... Bxg2 {[%clk
0:02:00.7]} 21. Kxg2 {[%clk 0:02:06.1]} 21... Nf6 {[%clk 0:01:58.1]} 22. f3
{[%clk 0:02:05.3]} 22... Bh6 {[%clk 0:01:57]} 23. Bxh6 {[%clk 0:02:03.3]} 1-0

[Event "*** Titled Tuesday Blitz"]
[Site "Chess.com"]
[Date "2020.05.12"]
[Round "5"]
[White "damayito"]
[Black "Denis_Palkovich"]
[Result "0-1"]
[WhiteElo "1589"]
[BlackElo "2279"]
[TimeControl "180+1"]
[EndTime "10:52:04 PDT"]
[Termination "Denis_Palkovich won by resignation"]

1. e4 {[%clk 0:03:00.9]} 1... d5 {[%clk 0:02:59.5]} 2. exd5 {[%clk 0:03:00.2]}
2... Nf6 {[%clk 0:02:59.7]} 3. Nf3 {[%clk 0:02:58.6]} 3... Nxd5 {[%clk
0:02:59.3]} 4. Bc4 {[%clk 0:02:55.4]} 4... Nb6 {[%clk 0:02:58.9]} 5. Bb3 {[%clk
0:02:54.7]} 5... c5 {[%clk 0:02:59]} 6. a3 {[%clk 0:02:53.5]} 6... c4 {[%clk
0:02:58.5]} 7. Ba2 {[%clk 0:02:53.1]} 7... Nc6 {[%clk 0:02:54.1]} 8. O-O {[%clk
0:02:53.3]} 8... Bg4 {[%clk 0:02:53.4]} 9. h3 {[%clk 0:02:52.4]} 9... Bh5 {[%clk
0:02:50.5]} 10. b3 {[%clk 0:02:46.5]} 10... Nd4 {[%clk 0:02:12.7]} 11. bxc4
{[%clk 0:02:40.4]} 11... Nxf3+ {[%clk 0:01:59.1]} 12. gxf3 {[%clk 0:02:40.6]}
12... Qd4 {[%clk 0:01:56.3]} 13. Nc3 {[%clk 0:02:36.2]} 13... e6 {[%clk
0:01:36.9]} 14. d3 {[%clk 0:02:33.8]} 14... Qh4 {[%clk 0:01:35.8]} 15. Ne4
{[%clk 0:02:07.6]} 15... Qxh3 {[%clk 0:01:33.5]} 16. Ng3 {[%clk 0:02:05.4]}
16... Bd6 {[%clk 0:01:29.4]} 17. Qe1 {[%clk 0:02:05.3]} 17... Bxf3 {[%clk
0:01:26.3]} 0-1

[Event "*** Titled Tuesday Blitz"]
[Site "Chess.com"]
[Date "2020.05.12"]
[Round "5"]
[White "gui_borba"]
[Black "Chessdude1987"]
[Result "1-0"]
[WhiteElo "2335"]
[BlackElo "2164"]
[TimeControl "180+1"]
[EndTime "10:52:05 PDT"]
[Termination "gui_borba won by resignation"]

1. d4 {[%clk 0:03:00.9]} 1... e6 {[%clk 0:02:57.6]} 2. e4 {[%clk 0:03:00.4]}
2... d5 {[%clk 0:02:56.7]} 3. e5 {[%clk 0:03:01.3]} 3... c5 {[%clk 0:02:55.9]}
4. c3 {[%clk 0:03:02.2]} 4... Nc6 {[%clk 0:02:56.1]} 5. Nf3 {[%clk 0:03:01.8]}
5... Qb6 {[%clk 0:02:56.4]} 6. a3 {[%clk 0:03:02.3]} 6... f6 {[%clk 0:02:56.8]}
7. Bd3 {[%clk 0:02:58.4]} 7... fxe5 {[%clk 0:02:54.2]} 8. dxe5 {[%clk
0:02:57.9]} 8... c4 {[%clk 0:02:53.5]} 9. Bc2 {[%clk 0:02:57.6]} 9... Nh6 {[%clk
0:02:50.4]} 10. Bxh6 {[%clk 0:02:55.9]} 10... Qxb2 {[%clk 0:02:48.3]} 11. Bc1
{[%clk 0:02:46.3]} 11... Qxa1 {[%clk 0:02:46.9]} 12. O-O {[%clk 0:02:45.3]}
12... Bc5 {[%clk 0:02:39.2]} 13. Ng5 {[%clk 0:02:33.2]} 13... Nxe5 {[%clk
0:02:35.3]} 14. Nxh7 {[%clk 0:02:24.4]} 14... Bd7 {[%clk 0:02:21.4]} 15. Qh5+
{[%clk 0:02:17.3]} 15... g6 {[%clk 0:02:04.9]} 16. Qxe5 {[%clk 0:02:16.1]} 16...
Rxh7 {[%clk 0:02:04.1]} 17. Bxg6+ {[%clk 0:02:15.6]} 17... Rf7 {[%clk
0:02:04.1]} 18. Qf6 {[%clk 0:01:48.6]} 18... Be7 {[%clk 0:01:45.3]} 19. Qxf7+
{[%clk 0:01:46.4]} 19... Kd8 {[%clk 0:01:45.1]} 20. Qg8+ {[%clk 0:01:46.6]}
20... Kc7 {[%clk 0:01:41.8]} 21. Qxa8 {[%clk 0:01:47.5]} 1-0

[Event "*** Titled Tuesday Blitz"]
[Site "Chess.com"]
[Date "2020.05.12"]
[Round "5"]
[White "Khamrakulov_Djurabek"]
[Black "FelixJoseYnojosa"]
[Result "0-1"]
[WhiteElo "2809"]
[BlackElo "2627"]
[TimeControl "180+1"]
[EndTime "10:52:14 PDT"]
[Termination "FelixJoseYnojosa won by resignation"]

1. e4 {[%clk 0:03:00.9]} 1... c5 {[%clk 0:02:59.5]} 2. c3 {[%clk 0:03:01]} 2...
Nf6 {[%clk 0:02:59.7]} 3. e5 {[%clk 0:03:01.2]} 3... Nd5 {[%clk 0:03:00.3]} 4.
Nf3 {[%clk 0:03:01]} 4... Nc6 {[%clk 0:03:00.2]} 5. d4 {[%clk 0:03:01.3]} 5...
cxd4 {[%clk 0:03:00.3]} 6. cxd4 {[%clk 0:03:02.2]} 6... d6 {[%clk 0:03:00.6]} 7.
Bc4 {[%clk 0:03:02.3]} 7... Nb6 {[%clk 0:03:00.9]} 8. Bb5 {[%clk 0:03:02]} 8...
d5 {[%clk 0:03:01.3]} 9. Nc3 {[%clk 0:03:01.2]} 9... Bg4 {[%clk 0:03:01]} 10. h3
{[%clk 0:02:59.4]} 10... Bxf3 {[%clk 0:03:01.2]} 11. Qxf3 {[%clk 0:03:00.3]}
11... e6 {[%clk 0:03:01.8]} 12. O-O {[%clk 0:02:57.3]} 12... Be7 {[%clk
0:03:00.8]} 13. Qg4 {[%clk 0:02:57.4]} 13... Kf8 {[%clk 0:02:45]} 14. Bxc6
{[%clk 0:02:47.6]} 14... bxc6 {[%clk 0:02:44.8]} 15. b3 {[%clk 0:02:47.7]} 15...
h5 {[%clk 0:02:31.8]} 16. Qe2 {[%clk 0:02:46.1]} 16... g6 {[%clk 0:02:25]} 17.
a4 {[%clk 0:02:39.4]} 17... a5 {[%clk 0:02:20.8]} 18. Ba3 {[%clk 0:02:37.1]}
18... Bxa3 {[%clk 0:02:15.3]} 19. Rxa3 {[%clk 0:02:38]} 19... Qe7 {[%clk
0:02:15.9]} 20. Ra2 {[%clk 0:02:37.4]} 20... Kg7 {[%clk 0:02:16.2]} 21. Rc2
{[%clk 0:02:36.5]} 21... Rhc8 {[%clk 0:02:05.3]} 22. Rfc1 {[%clk 0:02:35.9]}
22... Qb4 {[%clk 0:02:00.4]} 23. Qe3 {[%clk 0:02:04.2]} 23... c5 {[%clk
0:01:55.4]} 24. dxc5 {[%clk 0:01:58.2]} 24... Qxc5 {[%clk 0:01:50.2]} 25. Nxd5
{[%clk 0:01:41.2]} 25... Qxd5 {[%clk 0:01:45.4]} 26. Qxb6 {[%clk 0:01:41]} 26...
Rxc2 {[%clk 0:01:45.4]} 0-1